fUSD/lending_fUSD_20240212
["ID","MTS","AMOUNT","RATE_DAILY","PERIOD"]
[313832207,1707748260587,-535.11731545,0.00023396,2]
[313832208,1707748260597,-500.0,0.00023396,2]
[313832209,1707748260607,-247.70246589,0.00023396,2]
[313832210,1707748260618,-500.0,0.00023396,2]
[313832211,1707748260628,-500.0,0.00023396,2]
[313832212,1707748260638,-1897.21,0.00023396,2]
[313832213,1707748260648,-500.0,0.00023396,2]
[313832214,1707748260658,-935.54,0.00023396,2]
[313832215,1707748260669,-500.0,0.00023396,2]
[313832216,1707748260679,-7934.79,0.00023396,2]
[313832217,1707748260689,-500.0,0.00023396,2]
[313832218,1707748260699,-500.0,0.00023396,2]
[313832219,1707748260708,-500.0,0.00023396,2]
[313832220,1707748260717,-500.0,0.00023396,2]
[313832221,1707748260727,-500.0,0.00023396,2]
[313832222,1707748260737,-500.0,0.00023396,2]
[313832223,1707748260747,-500.0,0.00023396,2]
[313832224,1707748260757,-2190.55,0.00023396,2]
[313832225,1707748260767,-500.0,0.00023396,2]
[313832226,1707748260777,-500.0,0.00023396,2]
[313832227,1707748260787,-1376.25,0.00023396,2]
[313832228,1707748260797,-500.0,0.00023396,2]
[313832229,1707748260807,-6405.5,0.00023396,2]
[313832230,1707748260816,-500.0,0.00023396,2]
[313832231,1707748260826,-500.0,0.00023396,2]
[313832232,1707748260836,-500.0,0.00023396,2]
[313832233,1707748260846,-4161.56,0.00023396,2]
[313832234,1707748260857,-692.19,0.00023396,2]
[313832235,1707748260867,-500.0,0.00023396,2]
[313832236,1707748260877,-500.0,0.00023396,2]
[313832237,1707748260886,-562.21,0.00023396,2]
[313832238,1707748260896,-500.0,0.00023399,2]
[313832239,1707748260905,-500.0,0.00023399,2]
[313832240,1707748260916,-500.0,0.00023399,2]
[313832241,1707748260926,-500.0,0.00023399,2]
[313832242,1707748260935,-500.0,0.00023399,2]
[313832243,1707748260945,-490.93425494,0.00023399,2]
[313832244,1707748260954,-500.0,0.00023399,2]
[313832245,1707748260964,-500.0,0.00023399,2]
[313832246,1707748260976,-500.0,0.00023399,2]
[313832247,1707748260986,-482.78734389,0.00023399,2]
[313832248,1707748260996,-500.0,0.00023399,2]
[313832249,1707748261006,-500.0,0.00023399,2]
[313832250,1707748261016,-500.0,0.00023399,2]
[313832251,1707748261025,-500.0,0.00023399,2]
[313832252,1707748261035,-500.0,0.00023399,2]
[313832253,1707748261045,-500.0,0.00023399,2]
[313832254,1707748261055,-500.0,0.00023399,2]
[313832255,1707748261065,-500.0,0.00023399,2]
[313832256,1707748261075,-500.0,0.00023399,2]
[313832257,1707748261085,-500.0,0.00023399,2]
[313832258,1707748261094,-500.0,0.00023399,2]
[313832259,1707748261104,-500.0,0.00023399,2]
[313832260,1707748261113,-500.0,0.00023399,2]
[313832261,1707748261124,-510.3283348,0.00023399,2]
[313832262,1707748261133,-500.0,0.00023399,2]
[313832263,1707748261143,-260.47212146,0.00023399,2]
[313832264,1707748261153,-500.0,0.00023399,2]
[313832265,1707748261163,-500.0,0.00023399,2]
[313832266,1707748261173,-500.0,0.00023399,2]
[313832267,1707748261183,-500.0,0.00023399,2]
[313832268,1707748261193,-583.19760064,0.00023399,2]
[313832269,1707748261203,-183.26070551,0.00023399,2]
[313832270,1707748261213,-500.0,0.00023399,2]
[313832271,1707748261222,-500.0,0.00023399,2]
[313832272,1707748261231,-500.0,0.00023399,2]
[313832273,1707748261241,-404.56420529,0.00023399,2]
[313832274,1707748261251,-500.0,0.00023399,2]
[313832275,1707748261260,-500.0,0.00023399,2]
[313832276,1707748261270,-500.0,0.00023399,2]
[313832277,1707748261280,-453.09850043,0.00023399,2]
[313832278,1707748261290,-500.0,0.00023399,2]
[313832279,1707748261300,-195.097298,0.00023399,2]
[313832280,1707748261311,-500.0,0.00023399,2]
[313832281,1707748261321,-500.0,0.00023399,2]
[313832282,1707748261331,-447.898842,0.00023399,2]
[313832283,1707748261340,-500.0,0.00023454,2]
[313832284,1707748261350,-500.0,0.00023477,2]
[313832285,1707748261360,-500.0,0.00023477,2]
[313832286,1707748261369,-500.0,0.00023477,2]
[313832287,1707748261380,-408.49,0.00023477,2]
[313832288,1707748261390,-500.0,0.00023477,2]
[313832289,1707748261399,-500.0,0.00023477,2]
[313832290,1707748261409,-500.0,0.00023477,2]
[313832291,1707748261418,-500.0,0.00023477,2]
[313832292,1707748261428,-500.0,0.00023477,2]
[313832293,1707748261438,-500.0,0.00023477,2]
[313832294,1707748261448,-500.0,0.00023477,2]
[313832295,1707748261457,-500.0,0.00023477,2]
[313832296,1707748261467,-1262.54,0.00023477,2]
[313832297,1707748261477,-500.0,0.00023477,2]
[313832298,1707748261487,-500.0,0.00023477,2]
[313832299,1707748261496,-1207.47,0.00023477,2]
[313832300,1707748261506,-157.07524715,0.00023477,2]
[313832301,1707748261516,-500.0,0.00023477,2]
[313832302,1707748261526,-500.0,0.00023477,2]
[313832303,1707748261536,-500.0,0.00023477,2]
[313832304,1707748261546,-500.0,0.00023477,2]
[313832305,1707748261556,-500.0,0.00023477,2]
[313832306,1707748261566,-500.0,0.00023477,2]
[313832307,1707748261576,-581.28,0.00023477,2]
[313832308,1707748261586,-500.0,0.00023477,2]
[313832309,1707748261595,-500.0,0.00023477,2]
[313832310,1707748261605,-500.0,0.00023477,2]
[313832311,1707748261615,-500.0,0.00023477,2]
[313832312,1707748261718,-500.0,0.00023477,2]
[313832313,1707748261728,-500.0,0.00023477,2]
[313832314,1707748261738,-500.0,0.00023477,2]
[313832315,1707748261747,-500.0,0.00023477,2]
[313832316,1707748261756,-500.0,0.00023477,2]
[313832317,1707748261765,-500.0,0.00023477,2]
[313832318,1707748261775,-500.0,0.00023477,2]
[313832319,1707748261783,-500.0,0.00023477,2]
[313832320,1707748261793,-500.0,0.00023477,2]
[313832321,1707748261802,-500.0,0.00023477,2]
[313832322,1707748261812,-500.0,0.00023477,2]
[313832323,1707748261822,-500.0,0.00023477,2]
[313832324,1707748261831,-662.95,0.00023477,2]
[313832325,1707748261841,-500.0,0.00023477,2]
[313832326,1707748261850,-164.26966866,0.00023477,2]
[313832327,1707748261859,-500.0,0.00023477,2]
[313832328,1707748261868,-500.0,0.00023477,2]
[313832329,1707748261878,-500.0,0.00023477,2]
[313832330,1707748261887,-500.0,0.00023477,2]
[313832331,1707748261896,-500.0,0.00023477,2]
[313832332,1707748261906,-500.0,0.00023477,2]
[313832333,1707748261915,-500.0,0.00023477,2]
[313832334,1707748261924,-500.0,0.00023477,2]
[313832335,1707748261934,-500.0,0.00023477,2]
[313832336,1707748261943,-500.0,0.00023477,2]
[313832337,1707748261952,-500.0,0.00023477,2]
[313832338,1707748261962,-785.31,0.00023477,2]
[313832339,1707748261971,-500.0,0.00023477,2]
[313832340,1707748261981,-500.0,0.00023477,2]
[313832341,1707748261991,-500.0,0.00023477,2]
[313832342,1707748262002,-1057.6,0.00023477,2]
[313832343,1707748262013,-500.0,0.00023477,2]
[313832344,1707748262022,-500.0,0.00023477,2]
[313832345,1707748262032,-623.82,0.00023477,2]
[313832346,1707748262041,-500.0,0.00023477,2]
[313832347,1707748262051,-500.0,0.00023477,2]
[313832348,1707748262061,-500.0,0.00023477,2]
[313832349,1707748262070,-500.0,0.00023477,2]
[313832350,1707748262079,-500.0,0.00023477,2]
[313832351,1707748262088,-681.61,0.00023477,2]
[313832352,1707748262097,-500.0,0.00023477,2]
[313832353,1707748262107,-500.0,0.00023477,2]
[313832354,1707748262116,-500.0,0.00023477,2]
[313832355,1707748262126,-1004.0,0.00023477,2]
[313832356,1707748262134,-500.0,0.00023477,2]
[313832357,1707748262145,-500.0,0.00023477,2]
[313832358,1707748262155,-262.96464593,0.00023477,2]
[313832359,1707748262165,-500.0,0.00023477,2]
[313832360,1707748262175,-500.0,0.00023477,2]
[313832361,1707748262184,-500.0,0.00023477,2]
[313832362,1707748262193,-500.0,0.00023477,2]
[313832363,1707748262202,-500.0,0.00023477,2]
[313832364,1707748262212,-500.0,0.00023484,2]
[313832365,1707748262221,-500.0,0.00023484,2]
[313832366,1707748262231,-500.0,0.00023484,2]
[313832367,1707748262240,-612.54842473,0.00023484,2]
[313832368,1707748262252,-500.0,0.00023484,2]
[313832369,1707748262261,-500.0,0.00023484,2]
[313832370,1707748262271,-500.0,0.00023484,2]
[313832371,1707748262280,-500.0,0.00023484,2]
[313832372,1707748262290,-733.69,0.00023502,2]
[313832373,1707748262301,-5812.6876084,0.00023502,2]
[313832374,1707748262313,-250.0,0.00023503,2]
[313832375,1707748262322,-250.0,0.00023503,2]
[313832376,1707748262332,-155.0,0.00023503,2]
[313832377,1707748262342,-202.0,0.00023503,2]
[313832378,1707748262352,-158.0,0.00023503,2]
[313832379,1707748262362,-158.24,0.00023503,2]
[313832380,1707748262371,-233.738,0.00023503,2]
[313832381,1707748262382,-244.495,0.00023503,2]
[313832382,1707748262392,-150.0,0.00023503,2]
[313832383,1707748262402,-200.0,0.00023503,2]
[313832384,1707748262411,-151.347,0.00023503,2]
[313832385,1707748262420,-250.0,0.00023503,2]
[313832386,1707748262429,-155.778,0.00023503,2]
[313832387,1707748262439,-226.244,0.00023503,2]
[313832388,1707748262448,-151.483,0.00023503,2]
[313832389,1707748262457,-1117.06506161,0.00023506,2]
[313832390,1707748262467,-150.0,0.00023506,2]
[313832391,1707748262477,-150.0,0.00023506,2]
[313832392,1707748262486,-1010.074,0.00023507,2]
[313832393,1707748262496,-740.966,0.00023507,2]
[313832394,1707748262505,-466.227,0.00023507,2]
[313832395,1707748262515,-259.915,0.00023507,2]
[313832396,1707748262525,-1947.0,0.00023507,2]
[313832397,1707748262537,-371.021,0.00023507,2]
[313832398,1707748262547,-1138.0,0.00023507,2]
[313832399,1707748262557,-245.618,0.00023507,2]
[313832400,1707748262567,-859.0,0.00023507,2]
[313832401,1707748262578,-443.0,0.00023507,2]
[313832402,1707748262589,-453.0,0.00023507,2]
[313832403,1707748262599,-397.0,0.00023507,2]
[313832404,1707748262609,-5622.0,0.00023507,2]
[313832405,1707748262619,-8156.0,0.00023507,2]
[313832406,1707748262629,-2399.0,0.00023507,2]
[313832407,1707748262639,-1367.0,0.00023507,2]
[313832408,1707748262649,-7409.0,0.00023507,2]
[313832409,1707748262658,-42526.0,0.00023507,2]
[313832410,1707748262668,-4206.0,0.00023507,2]
[313832411,1707748262678,-19827.0,0.00023507,2]
[313832412,1707748262688,-2339.912,0.00023507,2]
[313832413,1707748262697,-2924.0,0.00023507,2]
[313832414,1707748262707,-883.0,0.00023507,2]
[313832415,1707748262717,-453.0,0.00023507,2]
[313832416,1707748262726,-1981.564,0.00023507,2]
[313832417,1707748262737,-2832.0,0.00023507,2]
[313832418,1707748262748,-952.0,0.00023507,2]
[313832419,1707748262758,-1036.0,0.00023507,2]
[313832420,1707748262769,-182.721,0.00023507,2]
[313832421,1707748262779,-205.0,0.00023531,2]
[313832422,1707748262789,-500.0,0.0002356,2]
[313832423,1707748262799,-50000.0,0.00023567,3]
[313832424,1707748262809,-500.0,0.00023568,2]
[313832425,1707748262819,-597.26538152,0.00023568,2]
[313832426,1707748262829,-500.0,0.00023568,2]
[313832427,1707748262839,-500.0,0.00023568,2]
[313832428,1707748262848,-500.0,0.00023568,2]
[313832429,1707748262858,-500.0,0.00023568,2]
[313832430,1707748262868,-1366.1,0.00023568,2]
[313832431,1707748262878,-500.0,0.00023568,2]
[313832432,1707748262888,-500.0,0.00023568,2]
[313832433,1707748262899,-500.0,0.00023568,2]
[313832434,1707748262910,-916.72861719,0.0002357,2]
[313832435,1707748262921,-880.18303631,0.0002357,2]
[313832436,1707748262932,-3067.01146239,0.0002357,2]
[313832437,1707748262942,-568.33663327,0.00023573,7]
[313832438,1707748262953,-2110.37,0.00023584,2]
[313832439,1707748262963,-500.0,0.00023584,2]
[313832440,1707748262973,-6142.49,0.00023584,2]
[313832441,1707748262984,-500.0,0.00023584,2]
[313832442,1707748262995,-500.0,0.00023584,2]
[313832443,1707748263007,-676.37,0.00023584,2]
[313832444,1707748263018,-1791.31,0.00023584,2]
[313832445,1707748263028,-564.38,0.00023584,2]
[313832446,1707748263038,-500.0,0.00023584,2]
[313832447,1707748263048,-2125.32,0.00023584,2]
[313832448,1707748263059,-500.0,0.00023584,2]
[313832449,1707748263069,-746.12,0.00023584,2]
[313832450,1707748263080,-500.0,0.00023584,2]
[313832451,1707748263090,-6506.4,0.00023584,2]
[313832452,1707748263099,-746.22,0.00023584,2]
[313832453,1707748263109,-500.0,0.00023584,2]
[313832454,1707748263120,-500.0,0.00023584,2]
[313832455,1707748263130,-500.0,0.00023584,2]
[313832456,1707748263140,-500.0,0.00023584,2]
[313832457,1707748263153,-1926.94,0.00023584,2]
[313832458,1707748263164,-500.0,0.00023584,2]
[313832459,1707748263175,-1829.63,0.00023584,2]
[313832460,1707748263185,-500.0,0.00023584,2]
[313832461,1707748263195,-504.23,0.00023584,2]
[313832462,1707748263205,-2230.81,0.00023584,2]
[313832463,1707748263215,-500.0,0.00023584,2]
[313832464,1707748263225,-500.0,0.00023584,2]
[313832465,1707748263236,-5597.11,0.00023584,2]
[313832466,1707748263246,-2899.6,0.00023584,2]
[313832467,1707748263257,-500.0,0.00023584,2]
[313832468,1707748263267,-828.89,0.00023584,2]
[313832469,1707748263277,-1211.19051625,0.00023603,2]
[313832470,1707748263288,-500.0,0.00023666,2]
[313832471,1707748263301,-500.0,0.00023666,2]
[313832472,1707748263311,-2611.65,0.00023666,2]
[313832473,1707748263321,-1871.51,0.00023666,2]
[313832474,1707748263331,-15228.44,0.00023666,2]
[313832475,1707748263342,-1123.04,0.00023666,2]
[313832476,1707748263352,-500.0,0.00023666,2]
[313832477,1707748263362,-669.38,0.00023666,2]
[313832478,1707748263373,-500.0,0.00023666,2]
[313832479,1707748263384,-500.0,0.00023666,2]
[313832480,1707748263395,-7454.03,0.00023666,2]
[313832481,1707748263405,-656.99,0.00023666,2]
[313832482,1707748263416,-1132.61,0.00023666,2]
[313832483,1707748263426,-500.0,0.00023666,2]
[313832484,1707748263436,-607.87,0.00023666,2]
[313832485,1707748263446,-2975.67,0.00023666,2]
[313832486,1707748263457,-1380.57,0.00023666,2]
[313832487,1707748263467,-1785.04,0.00023666,2]
[313832488,1707748263477,-500.0,0.00023666,2]
[313832489,1707748263487,-1602.71,0.00023666,2]
[313832490,1707748263498,-1140.13,0.00023666,2]
[313832491,1707748263508,-2106.31,0.00023666,2]
[313832492,1707748263518,-1276.82,0.00023666,2]
[313832493,1707748263529,-11488.97,0.00023666,2]
[313832494,1707748263539,-779.37,0.00023666,2]
[313832495,1707748263550,-522.1,0.00023666,2]
[313832496,1707748263560,-500.0,0.00023666,2]
[313832497,1707748263570,-862.25,0.00023666,2]
[313832498,1707748263580,-954.69,0.00023666,2]
[313832499,1707748263590,-4038.41,0.00023666,2]
[313832500,1707748263600,-2125.47,0.00023666,2]
[313832501,1707748263610,-3098.18,0.00023666,2]
[313832502,1707748263620,-4848.26,0.00023666,2]
[313832503,1707748263631,-1169.49,0.00023666,2]
[313832504,1707748263641,-2525.28,0.00023666,2]
[313832505,1707748263651,-500.0,0.00023667,2]
[313832506,1707748263661,-500.0,0.00023669,2]
[313832507,1707748263671,-500.0,0.00023669,2]
[313832508,1707748263688,-500.0,0.00023669,2]
[313832509,1707748263703,-500.0,0.00023669,2]
[313832510,1707748263721,-500.0,0.00023669,2]
[313832511,1707748263732,-500.0,0.00023669,2]
[313832512,1707748263750,-500.0,0.00023669,2]
[313832513,1707748263764,-500.0,0.00023669,2]
[313832514,1707748263779,-500.0,0.00023669,2]
[313832515,1707748263792,-500.0,0.00023669,2]
[313832516,1707748263806,-660.1,0.00023669,2]
[313832517,1707748263821,-676.33,0.00023669,2]
[313832518,1707748263836,-500.0,0.00023669,2]
[313832519,1707748263850,-500.0,0.00023669,2]
[313832520,1707748263865,-500.0,0.00023669,2]
[313832521,1707748263881,-500.0,0.00023669,2]
[313832522,1707748263892,-500.0,0.00023669,2]
[313832523,1707748263907,-500.0,0.00023669,2]
[313832524,1707748263922,-500.0,0.00023669,2]
[313832525,1707748263935,-500.0,0.00023669,7]
[313832526,1707748263948,-500.0,0.00023669,2]
[313832527,1707748263962,-500.0,0.00023669,2]
[313832528,1707748263976,-500.0,0.00023669,2]
[313832529,1707748263991,-526.84,0.00023669,2]
[313832530,1707748264008,-500.0,0.00023669,2]
[313832531,1707748264023,-500.0,0.00023669,2]
[313832532,1707748264034,-500.0,0.00023669,2]
[313832533,1707748264045,-500.0,0.00023669,2]
[313832534,1707748264056,-529.5,0.00023669,2]
[313832535,1707748264071,-500.0,0.00023669,2]
[313832536,1707748264083,-500.0,0.00023669,2]
[313832537,1707748264098,-652.95,0.00023669,2]
[313832538,1707748264110,-651.67,0.00023669,2]
[313832539,1707748264122,-567.71,0.00023669,2]
[313832540,1707748264134,-500.0,0.00023669,2]
[313832541,1707748264145,-784.11,0.00023669,2]
[313832542,1707748264158,-524.91,0.00023669,2]
[313832543,1707748264170,-500.0,0.00023669,2]
[313832544,1707748264183,-500.0,0.00023669,2]
[313832545,1707748264195,-500.0,0.00023669,2]
[313832546,1707748264207,-290.01103447,0.00023669,2]
[313832547,1707748264219,-872.77,0.00023669,2]
[313832548,1707748264231,-639.25,0.00023669,2]
[313832549,1707748264243,-500.0,0.00023669,2]
[313832550,1707748264258,-500.0,0.00023669,2]
[313832551,1707748264270,-500.0,0.00023669,2]
[313832552,1707748264283,-500.0,0.00023669,2]
[313832553,1707748264298,-500.0,0.00023669,2]
[313832554,1707748264310,-500.0,0.00023669,2]
[313832555,1707748264322,-150.0,0.00023669,2]
[313832556,1707748264335,-500.0,0.00023669,2]
[313832557,1707748264348,-500.0,0.00023669,2]
[313832558,1707748264361,-500.0,0.00023669,2]
[313832559,1707748264373,-500.0,0.00023669,2]
[313832560,1707748264387,-473.13414781,0.00023669,2]
[313832561,1707748264399,-500.0,0.00023669,2]
[313832562,1707748264411,-1296.69,0.00023669,2]
[313832563,1707748264424,-500.0,0.00023669,2]
[313832564,1707748264435,-500.0,0.00023669,2]
[313832565,1707748264448,-500.0,0.00023669,2]
[313832566,1707748264461,-159.03872335,0.00023669,2]
[313832567,1707748264474,-500.0,0.00023669,2]
[313832568,1707748264490,-500.0,0.00023669,2]
[313832569,1707748264503,-500.0,0.00023669,2]
[313832570,1707748264515,-500.0,0.00023669,2]
[313832571,1707748264527,-500.0,0.00023669,2]
[313832572,1707748264539,-500.0,0.00023669,2]
[313832573,1707748264551,-517.62,0.00023669,2]
[313832574,1707748264564,-4333.7,0.00023669,2]
[313832575,1707748264576,-1895.9,0.00023669,2]
[313832576,1707748264587,-923.15,0.00023669,2]
[313832577,1707748264599,-1121.1,0.00023669,2]
[313832578,1707748264611,-500.0,0.00023669,2]
[313832579,1707748264623,-500.0,0.00023669,2]
[313832580,1707748264635,-500.0,0.00023669,2]
[313832581,1707748264647,-500.0,0.00023669,2]
[313832582,1707748264659,-4100.88,0.00023669,2]
[313832583,1707748264671,-791.85,0.00023669,2]
[313832584,1707748264683,-500.0,0.00023669,2]
[313832585,1707748264694,-1394.8,0.00023669,2]
[313832586,1707748264707,-575.24,0.00023669,2]
[313832587,1707748264719,-500.0,0.00023669,2]
[313832588,1707748264731,-715.53,0.00023669,2]
[313832589,1707748264743,-637.77,0.00023669,2]
[313832590,1707748264756,-1763.67,0.00023669,2]
[313832591,1707748264768,-2032.84,0.00023669,2]
[313832592,1707748264780,-500.0,0.00023669,2]
[313832593,1707748264792,-686.28,0.00023669,2]
[313832594,1707748264805,-689.11,0.00023669,2]
[313832595,1707748264817,-4391.98,0.00023669,2]
[313832596,1707748264830,-1500.18,0.00023669,2]
[313832597,1707748264842,-637.5,0.00023669,2]
[313832598,1707748264855,-500.0,0.00023669,2]
[313832599,1707748264867,-1040.77,0.00023669,2]
[313832600,1707748264879,-500.0,0.00023669,2]
[313832601,1707748264892,-376.39647827,0.00023669,2]
[313832602,1707748264904,-1065.07,0.00023669,2]
[313832603,1707748264917,-500.0,0.00023669,2]
[313832604,1707748264929,-500.0,0.00023669,2]
[313832605,1707748264943,-596.16,0.00023669,2]
[313832606,1707748264954,-500.0,0.00023669,2]
[313832607,1707748264966,-706.62,0.00023669,2]
[313832608,1707748264978,-500.0,0.00023669,2]
[313832609,1707748264991,-4062.09,0.00023669,2]
[313832610,1707748265003,-1058.56,0.00023669,2]
[313832611,1707748265015,-500.0,0.00023669,2]
[313832612,1707748265027,-500.0,0.00023669,2]
[313832613,1707748265040,-721.91,0.00023669,2]
[313832614,1707748265054,-3863.5,0.00023669,2]
[313832615,1707748265067,-500.0,0.00023669,2]
[313832616,1707748265081,-500.0,0.00023669,2]
[313832617,1707748265094,-559.05,0.00023669,2]
[313832618,1707748265108,-500.0,0.00023669,2]
[313832619,1707748265121,-500.0,0.00023669,2]
[313832620,1707748265133,-500.0,0.00023669,2]
[313832621,1707748265146,-500.0,0.00023669,2]
[313832622,1707748265159,-5323.17,0.00023669,2]
[313832623,1707748265172,-500.0,0.00023669,2]
[313832624,1707748265184,-500.0,0.00023669,2]
[313832625,1707748265197,-500.0,0.00023669,2]
[313832626,1707748265209,-1797.81,0.00023669,2]
[313832627,1707748265221,-500.0,0.00023669,2]
[313832628,1707748265234,-500.0,0.00023669,2]
[313832629,1707748265246,-1838.78,0.00023669,2]
[313832630,1707748265258,-683.21,0.00023669,2]
[313832631,1707748265271,-500.0,0.00023669,2]
[313832632,1707748265283,-508.34,0.00023669,2]
[313832633,1707748265295,-500.0,0.00023669,2]
[313832634,1707748265311,-500.0,0.00023669,2]
[313832635,1707748265323,-945.99,0.00023669,2]
[313832636,1707748265335,-500.0,0.00023669,2]
[313832637,1707748265347,-500.0,0.00023669,2]
[313832638,1707748265359,-874.97,0.00023669,2]
[313832639,1707748265371,-500.0,0.00023669,2]
[313832640,1707748265384,-500.0,0.00023669,2]
[313832641,1707748265396,-500.0,0.00023669,2]
[313832642,1707748265408,-500.0,0.00023669,2]
[313832643,1707748265420,-2272.98,0.00023669,2]
[313832644,1707748265433,-500.0,0.00023669,2]
[313832645,1707748265445,-500.0,0.00023669,2]
[313832646,1707748265457,-1286.15,0.00023669,2]
[313832647,1707748265469,-500.0,0.00023669,2]
[313832648,1707748265481,-502.26,0.00023669,2]
[313832649,1707748265493,-1140.72,0.00023669,2]
[313832650,1707748265507,-500.0,0.0002367,2]
[313832651,1707748265519,-639.88,0.0002367,2]
[313832652,1707748265532,-236.73,0.0002367,2]
[313832653,1707748265545,-500.0,0.0002367,2]
[313832654,1707748265558,-529.64805064,0.0002367,2]
[313832655,1707748265571,-500.0,0.0002367,2]
[313832656,1707748265583,-500.0,0.0002367,2]
[313832657,1707748265595,-500.0,0.0002367,2]
[313832658,1707748265608,-500.0,0.0002367,2]
[313832659,1707748265619,-500.0,0.0002367,2]
[313832660,1707748265631,-352.44049455,0.0002367,2]
[313832661,1707748265643,-500.0,0.0002367,2]
[313832662,1707748265655,-500.0,0.0002367,2]
[313832663,1707748265668,-500.0,0.0002367,2]
[313832664,1707748265681,-500.0,0.0002367,2]
[313832665,1707748265693,-500.0,0.0002367,2]
[313832666,1707748265706,-597.6306352,0.0002367,2]
[313832667,1707748265717,-500.0,0.0002367,2]
[313832668,1707748265730,-500.0,0.0002367,2]
[313832669,1707748265741,-500.0,0.0002367,2]
[313832670,1707748265752,-516.98044517,0.0002367,2]
[313832671,1707748265762,-500.0,0.0002367,2]
[313832672,1707748265772,-500.0,0.0002367,2]
[313832673,1707748265781,-500.0,0.0002367,2]
[313832674,1707748265790,-500.0,0.0002367,2]
[313832675,1707748265800,-515.67546984,0.0002367,2]
[313832676,1707748265810,-500.0,0.0002367,2]
[313832677,1707748265819,-500.0,0.0002367,2]
[313832678,1707748265829,-500.0,0.0002367,2]
[313832679,1707748265839,-524.07,0.0002367,2]
[313832680,1707748265848,-500.0,0.0002367,2]
[313832681,1707748265858,-500.0,0.0002367,2]
[313832682,1707748265868,-500.0,0.0002367,2]
[313832683,1707748265878,-557.21136932,0.0002367,2]
[313832684,1707748265894,-500.0,0.0002367,2]
[313832685,1707748265903,-500.0,0.0002367,2]
[313832686,1707748265912,-500.0,0.0002367,2]
[313832687,1707748265923,-500.0,0.0002367,2]
[313832688,1707748265932,-582.64205472,0.0002367,2]
[313832689,1707748265942,-500.0,0.0002367,2]
[313832690,1707748265951,-500.0,0.0002367,2]
[313832691,1707748265961,-500.0,0.0002367,2]
[313832692,1707748265971,-500.0,0.0002367,2]
[313832693,1707748265980,-250.26310969,0.0002367,2]
[313832694,1707748265989,-500.0,0.0002367,2]
[313832695,1707748265999,-500.0,0.0002367,2]
[313832696,1707748266009,-500.0,0.0002367,2]
[313832697,1707748266372,-424.14613603,0.0002367,2]
[313832698,1707748266404,-615.91644805,0.0002367,2]
[313832699,1707748266427,-498.85285301,0.0002367,2]
[313832700,1707748266440,-500.0,0.0002367,2]
[313832701,1707748266450,-500.0,0.0002367,2]
[313832702,1707748266459,-500.0,0.0002367,2]
[313832703,1707748266469,-500.0,0.0002367,2]
[313832704,1707748266479,-500.0,0.0002367,2]
[313832705,1707748266489,-500.0,0.0002367,2]
[313832706,1707748266499,-500.0,0.0002367,2]